Cogmind - Beta 15 @@@ ROGUE MODE // 2025.05.20 @ 22:36:21 Player: Florist Result: Destroyed by S-43 Plague with Heavy Machine Gun Performance ------------- Evolutions (7) 3500 Regions Visited (24) 4800 Robots Destroyed (219) 1095 Value Destroyed (8201) 8201 Prototype IDs (63) 1260 Alien Tech Used (2) 400 Bonus (5546) 5546 TOTAL SCORE: 24802 Bonus ------- High Alert Combat Kills 251 Follower Combat Kills 1480 Network Hubs Disabled 200 Aligned with FarCom 300 Met Zhirov 300 Met Warlord at Base 500 MAIN.C Attacked Warlord 500 Warlord Defense Kills 1900 Built Enhanced Grunts 300 Friendly Fire -185 Cogmind --------- Core Integrity 0/1300 Matter 279/300 Energy 100/100 System Corruption 14% Temperature Cool (2) Movement Flying (45) Location -3/Research Parts ------- > --- POWER (2) -------- (None) > --- PROPULSION (7) --- Field Propulsion Drive > --- UTILITY (8) ------ (None) > --- WEAPON (4) ------- (None) > --- INVENTORY (5) ---- Vortex Rail (14) Signal Generator Signal Generator Peak State ------------ > --- POWER ------------ Fusion Reactor Light Antimatter Reactor > --- PROPULSION ------- Cooled VTOL Module Cooled VTOL Module Nuclear Pulse Array Field Propulsion Array > --- UTILITY ---------- Enhanced Optical Array Improved Hacking Suite Improved Hacking Suite Advanced Hacking Suite Improved System Shield Improved System Shield Improved System Shield > --- WEAPON ----------- Hardcell Cannon Datajack RU-N14's Throwing Claymores v3 Ripper > --- INVENTORY -------- Nuclear Pulse Array Improved Transmission Jammer Transdimensional Reconstructor Long-range Missile Launcher [Rating: 110] Favorites ----------- Power Cooled Ion Engine Engine Cooled Ion Engine Power Core Light Nuclear Core Reactor Fusion Reactor Propulsion Armored Treads Treads Armored Treads Leg Aluminum Leg Wheel Wheel Hover Unit Backup Propulsion III Flight Unit Cooled VTOL Module Utility High-capacity Storage Unit Device Cryofiber Web Storage High-capacity Storage Unit Processor Machine Analyzer Hackware Improved Hacking Suite Protection Hardened Light Armor Plating Weapon Medium Laser Energy Gun Medium Laser Energy Cannon Plasma Cannon Ballistic Gun Coil Gun Ballistic Cannon Hardcell Cannon Launcher Long-range Missile Launcher Special Weapon RU-N14's Throwing Claymores v3 Slashing Weapon Mining Claw Piercing Weapon Enhanced Force Lance Special Melee Weapon Datajack Build | -11 -10 -10 -10 -9 -8 -8 -8 -8 -6 -6 -6 -6 -6 -5 -5 -5 -5 -4 -4 -4 -4 -4 -3 -3 ------- Run | Yrd Mat Min Exi Min Mat Sto Rec Scr Fac Ext Cet Arc Hub Fac Upp Upp Zhi Pro Fac Upp Upp War Pro Res Slots Evolved 14 | . . . . . 4 . . . 4 . . . . 2 . . . . 2 . . . . 2 Power 1 | . . . . . . . . . 1 . . . . . . . . . . . . . . . Propulsion 5 | . . . . . 1 . . . . . . . . 1 . . . . 2 . . . . 1 Utility 6 | . . . . . 1 . . . 3 . . . . 1 . . . . . . . . . 1 Weapon 2 | . . . . . 2 . . . . . . . . . . . . . . . . . . . Parts Attached 169 | 6 8 1 . 1 14 37 12 2 8 24 2 2 8 9 . . 4 2 4 1 2 4 3 15 Power 24 | 1 1 . . . 2 5 . . 3 2 1 . 2 2 . . 2 . . . 1 . 1 1 Engine 17 | 1 . . . . 2 5 . . 3 2 1 . 1 1 . . . . . . . . . 1 Core 3 | . 1 . . . . . . . . . . . . 1 . . 1 . . . . . . . Reactor 4 | . . . . . . . . . . . . . 1 . . . 1 . . . 1 . 1 . Propulsion 49 | 2 2 . . . 4 9 8 . . 6 . 1 2 3 . . . . 2 . . . 1 9 Treads 11 | 2 2 . . . 1 . 4 . . 2 . . . . . . . . . . . . . . Leg 20 | . . . . . 3 8 2 . . 4 . 1 2 . . . . . . . . . . . Wheel 4 | . . . . . . . 2 . . . . . . . . . . . . . . . 1 1 Hover 1 | . . . . . . . . . . . . . . . . . . . . . . . . 1 Flight 13 | . . . . . . 1 . . . . . . . 3 . . . . 2 . . . . 7 Utility 46 | 1 3 1 . . 4 7 3 . 5 7 . 1 4 2 . . 2 1 1 1 1 1 . 1 Device 15 | . 1 . . . 2 3 2 . . 4 . . . 1 . . . . . . . 1 . 1 Storage 4 | 1 1 . . . . 1 . . . 1 . . . . . . . . . . . . . . Processor 7 | . 1 . . . . . . . 2 1 . 1 . . . . . . 1 . 1 . . . Hackware 10 | . . . . . . . 1 . . . . . 4 1 . . 2 1 . 1 . . . . Protection 10 | . . 1 . . 2 3 . . 3 1 . . . . . . . . . . . . . . Artifact . | . . . . . . . . . . . . . . . . . . . . . . . . . Weapon 50 | 2 2 . . 1 4 16 1 2 . 9 1 . . 2 . . . 1 1 . . 3 1 4 Energy Gun 28 | 2 2 . . 1 3 11 1 2 . 2 1 . . . . . . . . . . 2 . 1 Energy Cannon 1 | . . . . . . . . . . 1 . . . . . . . . . . . . . . Ballistic Gun 9 | . . . . . . 3 . . . 3 . . . . . . . . . . . . 1 2 Ballistic Cannon 1 | . . . . . . . . . . . . . . . . . . . 1 . . . . . Launcher 5 | . . . . . 1 1 . . . 3 . . . . . . . . . . . . . . Special Weapon 1 | . . . . . . . . . . . . . . . . . . . . . . 1 . . Impact Weapon . | . . . . . . . . . . . . . . . . . . . . . . . . . Slashing Weapon 3 | . . . . . . 1 . . . . . . . 1 . . . 1 . . . . . . Piercing Weapon 1 | . . . . . . . . . . . . . . . . . . . . . . . . 1 Special Melee Weapon 1 | . . . . . . . . . . . . . . 1 . . . . . . . . . . Unidentified Prototypes 18 | . . . . . 2 8 . . . . . . 1 . . . 2 . 1 . . 3 . 1 Corrupted Parts 3 | . . . . . . 1 . . . . . . 1 . . . . . . . . . . 1 System Corruption 14 | . . . . . . 6 . . . . . . 4 . . . . . . . . . . 4 Parts Lost 74 | . 3 . . . 9 9 4 . 2 9 1 1 3 . 2 . . . 1 . . 4 7 19 Power 10 | . . . . . 1 2 . . . . 1 . 2 . 1 . . . . . . . 2 1 Propulsion 25 | . 1 . . . 3 3 1 . . 3 . 1 . . . . . . . . . . 2 11 Utility 19 | . . . . . 2 1 1 . 2 3 . . . . 1 . . . 1 . . 2 2 4 Weapon 20 | . 2 . . . 3 3 2 . . 3 . . 1 . . . . . . . . 2 1 3 Highest Loss Streak 10 | . 2 . . . 3 4 4 . 1 6 1 1 3 . 1 . . . 1 . . 3 4 10 To Critical Strikes . | . . . . . . . . . . . . . . . . . . . . . . . . . Average Backups 12 | 3 8 10 14 13 14 18 18 19 12 4 14 14 11 4 4 4 3 4 3 4 4 3 3 2 Power . | . 1 2 2 2 1 . . 1 . . 1 1 1 . . . . . . . . . . . Propulsion 1 | 1 3 3 3 3 2 1 . 2 2 . 2 1 1 . 1 1 1 1 . 1 1 . . . Utility 6 | . 2 2 3 4 6 10 11 12 6 . 4 4 2 1 2 2 1 1 1 1 1 . . . Weapon 3 | . 1 3 5 4 3 5 4 4 3 3 7 7 7 1 1 1 1 1 1 1 1 1 2 1 Tool/Special . | . . . . . . . . . . . . . . . . . . . . . . . . . Unused Backups 25 | . . . . . 2 2 . . 10 3 1 1 . 6 . . . . . . . . . . Power . | . . . . . . . . . . . . . . . . . . . . . . . . . Propulsion 5 | . . . . . 2 . . . 1 . 1 . . 1 . . . . . . . . . . Utility 12 | . . . . . . 2 . . 6 1 . 1 . 2 . . . . . . . . . . Weapon 8 | . . . . . . . . . 3 2 . . . 3 . . . . . . . . . . Tool/Special . | . . . . . . . . . . . . . . . . . . . . . . . . . Average Slot Usage (%) 89 | . 88 99 71 98 94 97 94 99 98 91 95 96 98 66 72 64 67 70 66 73 83 84 59 27 Engine 6 | . 6 . . . 3 8 9 9 12 13 8 13 12 3 3 . . . . . . 3 1 . Core 2 | . 7 14 14 14 5 . . . . . . . . 2 5 5 1 . . . . . . . Treads 10 | . 27 28 28 28 10 . 12 27 20 6 . . . . . . . . . . . . . . Leg 9 | . . . . . 15 26 9 . . 11 20 16 20 . . . . . . . . . . . Flight 2 | . . . . . . . . . . . . . . 9 10 11 11 11 16 21 21 21 14 5 Device 8 | . 3 2 . . 10 5 14 18 13 18 20 20 . 4 3 . . . . . . . 5 . Storage 7 | . 14 14 14 14 9 12 9 9 4 . 6 6 6 . . . . . . . . . . . Processor 2 | . . . . . . . . . 7 10 13 13 6 5 5 5 5 5 1 . 2 5 1 . Hackware 5 | . . . . . . . 1 . . . . . 25 29 29 29 32 35 31 31 33 29 18 10 Protection 4 | . . 11 14 14 6 8 1 . 11 3 . . . . . . . . . . . . . . Energy Gun 21 | . 27 28 . 26 33 29 27 35 25 16 5 6 6 . . . . . . . . . 5 1 Ballistic Gun 3 | . . . . . . 4 4 . . 7 18 20 19 . . . . . . . . . . 1 Peak Build Rating 110 | 6 10 10 9 11 27 33 37 40 53 72 71 71 73 78 63 54 67 67 97 93 101 110 101 64 Average Rating 38 | 5 7 9 8 10 22 29 32 38 48 55 66 67 72 55 60 54 59 61 78 89 99 100 74 33 On Entrance 50 | . 6 9 10 9 11 26 33 36 40 53 69 70 71 73 57 54 54 61 66 89 93 101 101 64 Naked Turns 40 | . . . . . . . . . . . . . . . . . . . . . . . . 40 Heaviest Build 92 | 14 50 52 48 52 60 74 74 63 92 74 72 64 65 65 18 10 15 18 26 26 38 38 37 27 Greatest Support 76 | 40 40 40 40 40 60 54 60 60 60 60 60 60 76 76 26 18 18 18 42 42 42 42 38 16 Greatest Overweight (x) 6 | . 1 1 1 1 2 3 6 1 1 1 1 1 1 . . . . . . . . . 1 4 Average Overweight (x) . | . . 1 1 1 . 1 1 . . . . 1 . . . . . . . . . . . . Largest Inventory Capacity 20 | 8 20 20 20 20 20 20 20 20 20 15 15 15 15 15 5 5 5 5 5 5 5 5 5 5 Average Capacity 15 | 7 19 20 20 20 20 20 20 20 15 5 15 15 15 5 5 5 5 5 5 5 5 5 5 5 Most Carried 20 | 6 10 12 15 14 20 20 20 20 19 15 15 15 15 11 5 5 5 5 5 5 5 5 5 5 Average Carried 12 | 4 8 10 14 13 14 18 18 19 12 4 14 13 11 4 4 5 4 5 3 5 5 4 4 4 Final Capacity 20 | 8 20 20 20 20 20 20 20 20 5 15 15 15 15 5 5 5 5 5 5 5 5 5 5 5 Final Carried 20 | 6 9 12 15 13 20 20 19 20 5 15 14 15 12 5 5 5 5 5 5 5 5 5 5 3 Class Distribution -------------------- 27% | Scavenger-Skirmisher 19% | Mutant 11% | Skirmisher 7% | Commander-Gunner 6% | Commander-Skirmisher 6% | Wizard-Sprinter 5% | Wizard-Mutant 4% | Scavenger-Gunner Dominant Class ---------------- Mutant | -10/Materials Mutant | -10/Mines Mutant | -10/Exiles Mutant | -9/Mines Skirmisher | -8/Materials Scavenger-Skirmisher | -8/Storage Commander-Skirmisher | -8/Recycling Commander-Gunner | -8/Scraptown Commander-Tank | -6/Factory Scavenger-Skirmisher | -6/Extension Scavenger-Gunner | -6/Cetus Scavenger-Gunner | -6/Archives Scavenger-Skirmisher | -6/Hub_04(d) Wizard-Mutant | -5/Factory Wizard-Mutant | -5/Upper Caves Wizard-Mutant | -5/Upper Caves Wizard-Mutant | -5/Zhirov Wizard-Mutant | -4/Proximity Caves Wizard-Sprinter | -4/Factory Wizard-Sprinter | -4/Upper Caves Wizard-Sprinter | -4/Upper Caves Wizard-Sprinter | -4/Warlord Hacker-Sprinter | -3/Proximity Caves Hacker-Mutant | -3/Research Resources | -11 -10 -10 -10 -9 -8 -8 -8 -8 -6 -6 -6 -6 -6 -5 -5 -5 -5 -4 -4 -4 -4 -4 -3 -3 ----------- Run | Yrd Mat Min Exi Min Mat Sto Rec Scr Fac Ext Cet Arc Hub Fac Upp Upp Zhi Pro Fac Upp Upp War Pro Res Matter Collected 4594 | 260 131 20 . . 200 1019 353 56 95 487 238 281 335 108 15 . 35 40 . 62 39 514 93 213 Remotely . | . . . . . . . . . . . . . . . . . . . . . . . . . Salvage Created 9407 | 125 991 75 . . 849 3086 767 . 383 795 27 237 356 217 . . 218 . . . . 746 294 241 Parts 433 | 9 42 9 . . 27 149 35 . 26 21 . 24 23 11 . . 3 . . . . 28 11 15 Haulers Intercepted 13 | . 2 . . . 1 6 1 . . . . . 2 1 . . . . . . . . . . Recyclers Shooed 5 | . . . . . . 1 3 . 1 . . . . . . . . . . . . . . . Parts Field Recycled . | . . . . . . . . . . . . . . . . . . . . . . . . . Retrieved Matter . | . . . . . . . . . . . . . . . . . . . . . . . . . Parts Self-Destructed 11 | . . . . . . . . . . . . . . . . . 1 . . . 5 . 5 . Prevented . | . . . . . . . . . . . . . . . . . . . . . . . . . Kills | -11 -10 -10 -10 -9 -8 -8 -8 -8 -6 -6 -6 -6 -6 -5 -5 -5 -5 -4 -4 -4 -4 -4 -3 -3 ------- Run | Yrd Mat Min Exi Min Mat Sto Rec Scr Fac Ext Cet Arc Hub Fac Upp Upp Zhi Pro Fac Upp Upp War Pro Res Combat Hostiles Destroyed 150 | . 19 3 . . 14 44 9 . 6 12 4 . 1 . . . . . . . . 17 12 9 Melee 4 | . . . . . . . 1 . . . . . . . . . . . . . . . . 3 Guns 96 | . 17 3 . . 10 32 8 . 5 9 2 . 1 . . . . . . . . . 6 3 Cannons 5 | . . . . . . . . . . . . . . . . . . . . . . 2 1 2 AOE 30 | . . . . . . 7 . . . . 2 . . . . . . . . . . 15 5 1 Classes Destroyed 17 | 2 5 . . . 3 2 2 . . . . . 1 . . . . . . . . 2 . . Worker 8 | . . . . . 1 1 3 . . . . . 3 . . . . . . . . . . . Builder 3 | . . . . . . . 3 . . . . . . . . . . . . . . . . . Tunneler 4 | 3 . 1 . . . . . . . . . . . . . . . . . . . . . . Hauler 13 | . 2 . . . 1 6 1 . . . . . 2 1 . . . . . . . . . . Recycler 10 | 1 1 . . . . 6 2 . . . . . . . . . . . . . . . . . Mechanic 1 | . . . . . . . . . . . . . . . . . . . . . . 1 . . Operator 15 | . 3 . . . . 2 . . . . . 7 . 2 . . . . . . . . . 1 Watcher 15 | . 2 . . . 2 2 . . 2 2 1 . 2 2 . . . . . . . . . . Swarmer 31 | . 3 3 . . . 3 1 . . . . . . . . . . . . . . 4 8 9 Grunt 74 | . 16 . . . 7 28 2 . 1 8 . . . . . . . . . . . 9 3 . Brawler 5 | . . . . . . 1 . . 1 1 . . . . . . . . . . . 1 1 . Duelist 1 | . . . . . . . . . . . . . . . . . . . . . . 1 . . Protector 5 | . . . . . . 3 . . . . . . . . . . . . . . . 2 . . Sentry 19 | . . . . . 5 9 3 . . 2 . . . . . . . . . . . . . . Hunter 5 | . . . . . 2 . . . 2 1 . . . . . . . . . . . . . . Programmer 5 | . . . . . . . 3 . 2 . . . . . . . . . . . . . . . Heavy 1 | . . . . . . . . . . . . . 1 . . . . . . . . . . . Cetus Guard 4 | . . . . . . . . . . . 4 . . . . . . . . . . . . . Best Kill Streak 13 | 3 3 3 . . 4 9 4 . 2 3 5 4 3 1 . . . . . . . 13 5 3 Combat Bots Only 12 | . 3 3 . . 3 7 4 . 2 3 4 . 1 . . . . . . . . 12 5 3 Max Kills in Single Turn 5 | 1 1 1 . . 1 3 2 . 1 1 2 1 2 1 . . . . . . . 5 3 1 Gunslinging 1 | . . . . . . 1 1 . . . . . . . . . . . . . . . . . Exploded 4 | . . . . . . 2 . . . . 1 . . . . . . . . . . 4 3 1 Melee 1 | . . . . . . . 1 . . . . . . . . . . . . . . . . 1 Uniques/NPCs Destroyed . | . . . . . . . . . . . . . . . . . . . . . . . . . Combat | -11 -10 -10 -10 -9 -8 -8 -8 -8 -6 -6 -6 -6 -6 -5 -5 -5 -5 -4 -4 -4 -4 -4 -3 -3 -------- Run | Yrd Mat Min Exi Min Mat Sto Rec Scr Fac Ext Cet Arc Hub Fac Upp Upp Zhi Pro Fac Upp Upp War Pro Res Hostile Shots Fired 846 | . 89 12 . . 82 165 37 . 39 113 22 4 7 . 38 1 . . . 2 7 37 43 148 Missed 260 | . 25 2 . . 17 53 2 . 12 27 3 1 2 . 24 . . . . 2 2 15 23 50 Hits 586 | . 64 10 . . 65 112 35 . 27 86 19 3 5 . 14 1 . . . . 5 22 20 98 Projectile 586 | . 64 10 . . 65 112 35 . 27 86 19 3 5 . 14 1 . . . . 5 22 20 98 Critical Strikes 31 | . 1 . . . 4 5 7 . . 5 3 . . . . . . . . . . . 2 4 Part Disruptions 1 | . . . . . . . 1 . . . . . . . . . . . . . . . . . Damage Taken 10585 | . 741 83 . . 947 1735 521 . 335 1468 361 89 359 . 226 20 . . 32 . 85 521 765 2297 Core 2556 | . 142 16 . . 150 245 71 . 35 269 . . . . 51 20 . . . . . 15 276 1266 Absorbed by Shields 169 | . . . . . . . 14 . 17 . 138 . . . . . . . . . . . . . Ignored by Resistances 11 | . . . . . . . . . . 11 . . . . . . . . . . . . . . Regen/Repaired (Parts) 142 | . . . . . . . . . . . . . . . . . . . . . . 142 . . Core Remaining (%) 63 | 100 . . . 36 . . . 15 . . . . 64 . . . . 92 . . . . 74 . Volleys Fired 511 | 13 80 8 . . 52 125 28 . 17 48 12 19 21 . . . . . 4 . . 30 27 27 Largest 4 | 2 2 2 . . 4 4 4 . 4 4 4 3 4 . . . . . 1 . . 1 1 2 Hottest 296 | 100 100 100 . . 206 251 256 . 276 296 159 90 159 . . . . . 55 . . 55 55 85 Shots Fired 1324 | 26 160 18 . . 174 411 88 . 62 142 27 52 71 . . . . . 4 . . 30 28 31 Gun 1226 | 26 160 18 . . 174 387 88 . 62 133 16 52 71 . . . . . . . . . 12 27 Cannon 30 | . . . . . . . . . . 3 . . . . . . . . 4 . . 7 12 4 Launcher 64 | . . . . . . 24 . . . 6 11 . . . . . . . . . . 23 . . Special 4 | . . . . . . . . . . . . . . . . . . . . . . . 4 . Kinetic 257 | . . . . . . 44 12 . . 37 8 49 58 . . . . . 4 . . 7 12 26 Thermal 982 | 26 160 18 . . 174 343 76 . 62 99 8 3 13 . . . . . . . . . . . Explosive 44 | . . . . . . . . . . 6 11 . . . . . . . . . . 23 4 . Electromagnetic 24 | . . . . . . 24 . . . . . . . . . . . . . . . . . . Entropic 17 | . . . . . . . . . . . . . . . . . . . . . . . 12 5 Robot Hit Streak 22 | 4 8 2 . . 19 22 14 . 14 15 17 8 5 . . . . . . . . 8 11 4 Robot Miss Streak 7 | 3 4 7 . . 7 5 3 . 3 3 1 3 2 . . . . . . . . 3 1 7 Penetration Max 1 | . . . . . . . . . . 1 . 1 1 . . . . . . . . . 1 1 Secondary Targets 14 | . 5 . . . 2 2 2 . . 3 . . . . . . . . . . . . . . Max Gunslinging Chain 1 | . 1 . . . 1 1 1 . . 1 . . . . . . . . . . . . . . Shots Hit Robots 805 | 12 102 5 . . 118 204 72 . 38 93 19 29 41 11 . . 7 . 3 . . 21 11 19 Core Hits 449 | 5 48 4 . . 43 110 24 . 18 32 27 15 18 4 . . 4 . . . . 73 14 10 Critical Kills 1 | . . . . . . . . . . 1 . . . . . . . . . . . . . . Critical Parts Destroyed 5 | . . . . . . . . . . 1 . . 2 . . . . . . . . . 1 1 Critical Strikes 57 | 1 12 1 . . 11 14 2 . 1 7 . . 2 . . . . . . . . 1 2 3 Burn 47 | 1 12 1 . . 11 14 2 . 1 5 . . . . . . . . . . . . . . Destroy 4 | . . . . . . . . . . 2 . . 2 . . . . . . . . . . . Blast 2 | . . . . . . . . . . . . . . . . . . . . . . 1 . 1 Sever 1 | . . . . . . . . . . . . . . . . . . . . . . . 1 . Impale 1 | . . . . . . . . . . . . . . . . . . . . . . . . 1 Detonate 2 | . . . . . . . . . . . . . . . . . . . . . . . 1 1 Melee Attacks 92 | . . . . . . 1 24 . . . . . . 29 1 . 7 . 17 . . . . 13 Impact . | . . . . . . . . . . . . . . . . . . . . . . . . . Slashing 76 | . . . . . . 1 24 . . . . . . 28 1 . 7 . 15 . . . . . Piercing 13 | . . . . . . . . . . . . . . . . . . . . . . . . 13 Sneak Attacks 20 | . . . . . . . 13 . . . . . . 5 . . . . 1 . . . . 1 Combat Hostiles . | . . . . . . . . . . . . . . . . . . . . . . . . . Follow-up Attacks . | . . . . . . . . . . . . . . . . . . . . . . . . . Damage Inflicted 23386 | 152 1344 75 . . 1669 4478 2108 . 720 2013 1075 794 1122 426 . . 364 . 47 . . 4547 1476 976 Guns 13265 | 152 1344 75 . . 1568 3428 1237 . 720 1961 271 794 888 . . . . . . . . . 383 444 Cannons 367 | . . . . . . . . . . 25 . . . . . . . . . . . 216 . 126 Explosions 7579 | . . . . . 101 1050 . . . 27 804 . 234 . . . . . . . . 4331 951 81 Melee 2027 | . . . . . . . 871 . . . . . . 426 . . 364 . 47 . . . . 319 Ramming 6 | . . . . . . . . . . . . . . . . . . . . . . . . 6 Kinetic 3200 | . . . . . . 304 148 . . 470 175 775 794 . . . . . . . . 216 . 318 Thermal 10335 | 152 1344 75 . . 1568 3271 1089 . 720 1516 96 19 94 . . . . . . . . . 310 81 Explosive 5904 | . . . . . 101 . . . . 27 804 . . . . . . . . . . 4331 641 . Electromagnetic 1137 | . . . . . . 903 . . . . . . 234 . . . . . . . . . . . Impact . | . . . . . . . . . . . . . . . . . . . . . . . . . Slashing 1850 | . . . . . . . 871 . . . . . . 426 . . 364 . 47 . . . 142 . Piercing 319 | . . . . . . . . . . . . . . . . . . . . . . . . 319 Entropic 635 | . . . . . . . . . . . . . . . . . . . . . . . 383 252 Highest Corruption 15 | . 1 1 1 1 . 10 15 . 1 4 5 5 10 . . . . . 2 2 2 2 10 14 Average Corruption 5 | . 1 1 1 1 . 7 12 . 1 2 4 5 5 . . . . . 2 2 2 2 10 9 Corruption Purged . | . . . . . . . . . . . . . . . . . . . . . . . . . Corruption Blocked . | . . . . . . . . . . . . . . . . . . . . . . . . . Effects 278 | . 4 8 3 . . 63 106 . . 22 9 14 24 . . . . . 6 . 5 1 10 3 Message Errors 61 | . . 2 . . . 11 22 . . 6 2 3 6 . . . . . 4 . 1 . 4 . Matter Fused 78 | . 2 1 1 . . 22 29 . . 5 1 4 7 . . . . . 1 . 3 . 2 . Heat Flow Errors 27 | . 1 2 . . . 4 12 . . 2 2 . 1 . . . . . 1 . 1 . 1 . Energy Discharges 27 | . 1 . . . . 4 14 . . 2 . 1 3 . . . . . . . . 1 1 . Parts Rejected 3 | . . . . . . . . . . 1 . . 1 . . . . . . . . . . 1 Parts Fused 5 | . . . . . . 2 2 . . 1 . . . . . . . . . . . . . . Data Loss (minor) 32 | . . 1 1 . . 8 11 . . 2 2 3 3 . . . . . . . . . . 1 Data Loss (major) 8 | . . . 1 . . 2 5 . . . . . . . . . . . . . . . . . Misfires 14 | . . 2 . . . 3 2 . . . 2 2 2 . . . . . . . . . 1 . Alerts 5 | . . . . . . 2 3 . . . . . . . . . . . . . . . . . Misdirections 2 | . . . . . . . . . . . . . . . . . . . . . . . 1 1 Weapon Failures 16 | . . . . . . 5 6 . . 3 . 1 1 . . . . . . . . . . . Overload Shots . | . . . . . . . . . . . . . . . . . . . . . . . . . Overflow Damage 593 | . . . . . 50 25 101 . . . . . . 70 . . 85 . 17 . . 86 18 141 Projectiles 1 | . . . . . . . . . . . . . . . . . . . . . . 1 . . Explosions 224 | . . . . . 50 25 . . . . . . . . . . . . . . . 85 18 46 Melee 368 | . . . . . . . 101 . . . . . . 70 . . 85 . 17 . . . . 95 Knockbacks . | . . . . . . . . . . . . . . . . . . . . . . . . . Impact . | . . . . . . . . . . . . . . . . . . . . . . . . . Kinetic . | . . . . . . . . . . . . . . . . . . . . . . . . . Secondary . | . . . . . . . . . . . . . . . . . . . . . . . . . Self-Inflicted Damage 322 | . . . . . . 89 . . . 27 . . 96 . . . . . . . . 45 . 65 Shots 10 | . . . . . . 6 . . . 1 . . 1 . . . . . . . . 1 . 1 Rammed 3 | . . . . . . . . . . . . . . . . . . . . . . . . 3 Targets Rammed 4 | . . . . . . 1 . . . . . . . . . . . . . . . . . 3 Kicked 1 | . . . . . . 1 . . . . . . . . . . . . . . . . . . Crushed . | . . . . . . . . . . . . . . . . . . . . . . . . . Highest Temperature 676 | 217 405 324 . . 458 607 569 . 381 676 110 . 115 . . . . . 152 44 113 109 203 6 Average Temperature 140 | 92 122 124 . . 155 160 176 . 105 287 66 . 47 . . . . . 50 26 47 28 73 3 Received Heat Transfer 2682 | . 336 . . . 468 972 189 . . 584 25 18 . . 9 9 . . . . . 27 36 9 Effects 46 | 1 2 . . . 7 25 5 . . 6 . . . . . . . . . . . . . . Shutdowns 6 | . . . . . . 5 1 . . . . . . . . . . . . . . . . . Energy Bleed 8 | 1 1 . . . 2 4 . . . . . . . . . . . . . . . . . . Interference 11 | . . . . . 5 4 1 . . 1 . . . . . . . . . . . . . . Matter Decay 5 | . 1 . . . . 4 . . . . . . . . . . . . . . . . . . Short Circuit 3 | . . . . . . 1 1 . . 1 . . . . . . . . . . . . . . Damage (minor) 4 | . . . . . . 2 . . . 2 . . . . . . . . . . . . . . Damage (major) 9 | . . . . . . 5 2 . . 2 . . . . . . . . . . . . . . Siege Activations . | . . . . . . . . . . . . . . . . . . . . . . . . . Martial Activations . | . . . . . . . . . . . . . . . . . . . . . . . . . Shielding Activations . | . . . . . . . . . . . . . . . . . . . . . . . . . Robots Disrupted . | . . . . . . . . . . . . . . . . . . . . . . . . . Combat Hostiles . | . . . . . . . . . . . . . . . . . . . . . . . . . Robots Corrupted 4 | . . . . . . 4 . . . . . . . . . . . . . . . . . . Combat Hostiles 4 | . . . . . . 4 . . . . . . . . . . . . . . . . . . Parts Fried 5 | . . . . . . 5 . . . . . . . . . . . . . . . . . . Impact Corruptions . | . . . . . . . . . . . . . . . . . . . . . . . . . Robots Melted 12 | . 3 . . . 4 1 . . 1 3 . . . . . . . . . . . . . . Combat Hostiles 11 | . 2 . . . 4 1 . . 1 3 . . . . . . . . . . . . . . Parts Melted 55 | 1 12 2 . . 12 10 4 . 2 12 . . . . . . . . . . . . . . Heat Transferred 26838 | 518 4884 296 . . 5402 7842 2240 . 1521 3647 166 37 185 . . . . . . . . . 100 . Parts Sabotaged . | . . . . . . . . . . . . . . . . . . . . . . . . . Parts Stolen . | . . . . . . . . . . . . . . . . . . . . . . . . . Parts Stripped . | . . . . . . . . . . . . . . . . . . . . . . . . . Power Chain Reactions 3 | . . . . . . 3 . . . . . . . . . . . . . . . . . . Alert | -11 -10 -10 -10 -9 -8 -8 -8 -8 -6 -6 -6 -6 -6 -5 -5 -5 -5 -4 -4 -4 -4 -4 -3 -3 ------- Run | Yrd Mat Min Exi Min Mat Sto Rec Scr Fac Ext Cet Arc Hub Fac Upp Upp Zhi Pro Fac Upp Upp War Pro Res Maximum Alert Level 3 | . . . . . . 3 1 . . . 1 1 1 . . . . . . . . . . . Low Security (%) 86 | 100 100 100 . 100 100 56 93 . 100 100 72 63 64 100 . . . . 100 . . . . 100 Level 1 4 | . . . . . . . 6 . . . 27 36 35 . . . . . . . . . . . Level 2 2 | . . . . . . 12 . . . . . . . . . . . . . . . . . . Level 3 6 | . . . . . . 30 . . . . . . . . . . . . . . . . . . Level 4 . | . . . . . . . . . . . . . . . . . . . . . . . . . Level 5 . | . . . . . . . . . . . . . . . . . . . . . . . . . High Security . | . . . . . . . . . . . . . . . . . . . . . . . . . Max Security . | . . . . . . . . . . . . . . . . . . . . . . . . . Peak Influence 835 | 10 96 75 . . 145 835 322 . 91 132 335 305 392 191 . . . . 15 . . . . 165 Initial 322 | . . 12 . . . 18 322 . . 7 53 122 35 191 . . . . . . . . . 128 Average 116 | . 34 7 . . 49 366 44 . 10 29 160 188 133 84 . . . . . . . . . 69 Influence Increases 7450 | 20 536 115 . . 558 1653 385 . 273 577 432 298 1089 65 150 60 10 . 45 45 105 315 345 374 Destroy 0b10 Robot/C 3660 | . 380 80 . . 340 840 220 . 156 324 200 80 320 . . . . . . . . 300 240 180 Destroy 0b10 Robot/NC 414 | 20 40 5 . . 20 115 60 . 10 9 5 45 45 15 . . 10 . . . . 15 . . Destroy Leader 726 | . 98 10 . . 106 206 . . 42 68 20 . 110 6 . . . . . . . . 30 30 Allied During Kill 824 | . . 14 . . 4 13 78 . 60 49 144 125 337 . . . . . . . . . . . Successful Hack 215 | . 16 6 . . 18 47 9 . 4 37 8 . 35 10 . . . . . . . . . 25 Disable Machine 345 | . . . . . 15 150 15 . . 15 . 45 105 . . . . . . . . . . . Destroy Structure 333 | . 2 . . . 10 27 3 . 1 27 55 3 137 4 . . . . 30 . . . . 34 Partial Spotted 15 | . . . . . . . . . . . . . . . . . . . 15 . . . . . Lose Combat Pursuer 918 | . . . . . 45 255 . . . 48 . . . 30 150 60 . . . 45 105 . 75 105 Influence Decreases 7450 | 20 504 147 . . 512 871 1198 15 256 498 223 503 797 457 110 38 72 . 34 31 125 147 328 564 Entered New Map 1392 | . . 20 . . . 28 506 15 . 10 43 183 65 201 . 8 62 . . 5 6 5 173 62 Time Decay 4697 | 20 483 127 . . 432 713 489 . 181 341 170 310 334 256 90 30 10 . 32 26 119 102 120 312 Lost Part 625 | . 21 . . . 80 90 33 . . 64 10 10 30 . 20 . . . 2 . . 40 35 190 Lost Ally 318 | . . . . . . 40 20 . 75 83 . . 100 . . . . . . . . . . . Purge Threat 418 | . . . . . . . 150 . . . . . 268 . . . . . . . . . . . Squads Dispatched 43 | . 6 . . . 4 8 . . 2 4 2 . 8 2 . . . . 5 . . . . 2 Investigation 12 | . 2 . . . 2 2 . . . 2 2 . . 1 . . . . 1 . . . . . Extermination 9 | . . . . . . . . . 2 . . . 1 1 . . . . 3 . . . . 2 Reinforcement 17 | . 4 . . . 2 1 . . . 2 . . 7 . . . . . 1 . . . . . Assault 3 | . . . . . . 3 . . . . . . . . . . . . . . . . . . Garrison 2 | . . . . . . 2 . . . . . . . . . . . . . . . . . . Intercept . | . . . . . . . . . . . . . . . . . . . . . . . . . Searches Triggered . | . . . . . . . . . . . . . . . . . . . . . . . . . Construction Impeded 4 | . . . . . 1 . . . . 2 . . 1 . . . . . . . . . . . Haulers Reinforced 1 | . . . . . . . . . . . . . 1 . . . . . . . . . . . Active Scanning Responses . | . . . . . . . . . . . . . . . . . . . . . . . . . Cargo Convoy Interrupts . | . . . . . . . . . . . . . . . . . . . . . . . . . Stealth | -11 -10 -10 -10 -9 -8 -8 -8 -8 -6 -6 -6 -6 -6 -5 -5 -5 -5 -4 -4 -4 -4 -4 -3 -3 --------- Run | Yrd Mat Min Exi Min Mat Sto Rec Scr Fac Ext Cet Arc Hub Fac Upp Upp Zhi Pro Fac Upp Upp War Pro Res Distress Signals 20 | . 2 . . . 4 5 . . . 1 . . 7 . . . . . . . . . . 1 Communications Jammed . | . . . . . . . . . . . . . . . . . . . . . . . . . Distress Signals . | . . . . . . . . . . . . . . . . . . . . . . . . . Times Spotted 332 | . 34 4 . . 25 66 7 . 12 20 10 13 9 10 16 4 . . 1 3 9 40 17 32 Peak Tracking Total 14 | . 5 3 . . 4 14 4 . 3 6 5 2 4 3 8 4 . . 1 4 5 12 5 9 Tactical Retreats 33 | . . . . . 3 11 . . . 3 . . . 1 4 1 . . . 1 3 . 2 4 Traps | -11 -10 -10 -10 -9 -8 -8 -8 -8 -6 -6 -6 -6 -6 -5 -5 -5 -5 -4 -4 -4 -4 -4 -3 -3 ------- Run | Yrd Mat Min Exi Min Mat Sto Rec Scr Fac Ext Cet Arc Hub Fac Upp Upp Zhi Pro Fac Upp Upp War Pro Res Traps Triggered 20 | . 6 . . . 2 7 . . 1 . . . 1 1 . . . . . . . . . 2 Indirectly 6 | . . . . . . 5 . . . . . . 1 . . . . . . . . . . . Trap Hack Attempts . | . . . . . . . . . . . . . . . . . . . . . . . . . Triggered . | . . . . . . . . . . . . . . . . . . . . . . . . . Disarmed 3 | . . . . . . . . . . . . . 3 . . . . . . . . . . . Reprogrammed . | . . . . . . . . . . . . . . . . . . . . . . . . . Reused . | . . . . . . . . . . . . . . . . . . . . . . . . . Traps Extracted . | . . . . . . . . . . . . . . . . . . . . . . . . . Installed . | . . . . . . . . . . . . . . . . . . . . . . . . . Triggered . | . . . . . . . . . . . . . . . . . . . . . . . . . Machines | -11 -10 -10 -10 -9 -8 -8 -8 -8 -6 -6 -6 -6 -6 -5 -5 -5 -5 -4 -4 -4 -4 -4 -3 -3 ---------- Run | Yrd Mat Min Exi Min Mat Sto Rec Scr Fac Ext Cet Arc Hub Fac Upp Upp Zhi Pro Fac Upp Upp War Pro Res Machines Disabled 25 | . . . . . 1 10 1 . . 1 1 3 7 . . . . . . . . 1 . . Max in Single Turn 3 | . . . . . 1 2 1 . . 1 1 1 3 . . . . . . . . 1 . . Garrison Access 5 | . . . . . . 1 . . . . . . 2 2 . . . . . . . . . . Network Hub 1 | . . . . . . . . . . . . . 1 . . . . . . . . . . . Machines Repaired . | . . . . . . . . . . . . . . . . . . . . . . . . . Machines Dismantled . | . . . . . . . . . . . . . . . . . . . . . . . . . Machines Sabotaged . | . . . . . . . . . . . . . . . . . . . . . . . . . Overloaded Fab Kills . | . . . . . . . . . . . . . . . . . . . . . . . . . Hacking | -11 -10 -10 -10 -9 -8 -8 -8 -8 -6 -6 -6 -6 -6 -5 -5 -5 -5 -4 -4 -4 -4 -4 -3 -3 --------- Run | Yrd Mat Min Exi Min Mat Sto Rec Scr Fac Ext Cet Arc Hub Fac Upp Upp Zhi Pro Fac Upp Upp War Pro Res Machines Accessed 89 | . 5 1 2 . 3 10 10 . 5 14 3 1 12 7 . . 5 . 2 . 1 3 . 5 Terminals 58 | . 4 1 . . 2 8 5 . 3 13 3 . 10 4 . . . . 1 . 1 . . 3 Fabricators 3 | . . . . . . . . . 1 . . . . 1 . . . . 1 . . . . . Repair Stations 3 | . . . . . . . . . 1 . . . . . . . . . . . . . . 2 Recycling Units 9 | . 1 . . . 1 1 5 . . 1 . . . . . . . . . . . . . . Scanalyzers . | . . . . . . . . . . . . . . . . . . . . . . . . . Garrison Access 5 | . . . . . . 1 . . . . . . 2 2 . . . . . . . . . . Total Hacks 322 | . 14 3 2 . 12 31 35 . 13 34 12 9 73 31 . . 18 . 9 . 1 5 . 20 Successful 191 | . 7 3 2 . 5 16 12 . 6 18 1 9 51 21 . . 18 . 4 . 1 5 . 12 Failed 131 | . 7 . . . 7 15 23 . 7 16 11 . 22 10 . . . . 5 . . . . 8 Catastrophic 16 | . 1 . . . . 4 2 . . 1 3 . 3 . . . . . 1 . . . . 1 Database Lockouts . | . . . . . . . . . . . . . . . . . . . . . . . . . Manual 166 | . 10 . 1 . 10 26 16 . 9 10 2 . 35 24 . . . . 7 . . . . 16 Terminals 240 | . 12 3 . . 10 23 17 . 9 32 12 . 70 27 . . . . 7 . 1 . . 17 Fabricators 6 | . . . . . . . . . 2 . . . . 2 . . . . 2 . . . . . Repair Stations 5 | . . . . . . . . . 2 . . . . . . . . . . . . . . 3 Recycling Units 29 | . 2 . . . 2 5 18 . . 2 . . . . . . . . . . . . . . Scanalyzers . | . . . . . . . . . . . . . . . . . . . . . . . . . Garrison Access 8 | . . . . . . 3 . . . . . . 3 2 . . . . . . . . . . Terminal Hacks 119 | . 3 3 2 . 2 7 3 . . 11 1 9 38 10 . . 18 . 2 . 1 5 . 4 Record 29 | . . 2 1 . . . . . . 1 1 9 4 . . . 6 . . . 1 4 . . Part Schematic 7 | . . . . . . . . . . . . . 1 2 . . 4 . . . . . . . Robot Analysis 9 | . . . . . 1 3 . . . . . . 1 . . . 4 . . . . . . . Prototype ID Bank 10 | . 1 . . . . 1 . . . . . . 2 1 . . 4 . . . . . . 1 Open Door 8 | . . . . . . 1 . . . 6 . . . . . . . . . . . 1 . . Level Access Points 3 | . . . . . . . . . . . . . 1 1 . . . . 1 . . . . . Branch Access Points 5 | . . . . . . 1 . . . . . . 1 1 . . . . 1 . . . . 1 Emergency Access Points 2 | . . . . . . . . . . . . . 2 . . . . . . . . . . . Terminal Index 5 | . 1 . . . 1 1 . . . . . . 1 . . . . . . . . . . 1 Fabricator Index 2 | . . . . . . . . . . . . . 1 1 . . . . . . . . . . Scanalyzer Index 1 | . . . . . . . . . . . . . 1 . . . . . . . . . . . Garrison Index 2 | . . . . . . . . . . . . . 1 1 . . . . . . . . . . Alert Level 7 | . 1 . . . . . 1 . . 1 . . 3 1 . . . . . . . . . . Unreport Threat 4 | . . . . . . . 2 . . . . . 2 . . . . . . . . . . . Locate Traps 10 | . . . . . . . . . . 2 . . 6 2 . . . . . . . . . . Disarm Traps 1 | . . . . . . . . . . . . . 1 . . . . . . . . . . . Dispatch Records 2 | . . 1 . . . . . . . . . . 1 . . . . . . . . . . . Patrol Status 1 | . . . . . . . . . . 1 . . . . . . . . . . . . . . Recall Extermination 2 | . . . . . . . . . . . . . 1 . . . . . . . . . . 1 Recall Reinforcements 1 | . . . . . . . . . . . . . 1 . . . . . . . . . . . Hauler Manifests 2 | . . . . . . . . . . . . . 2 . . . . . . . . . . . Registered Components 1 | . . . . . . . . . . . . . 1 . . . . . . . . . . . Registered Prototypes 1 | . . . . . . . . . . . . . 1 . . . . . . . . . . . Zone Layout 3 | . . . . . . . . . . . . . 3 . . . . . . . . . . . Proto ID Catalog 1 | . . . 1 . . . . . . . . . . . . . . . . . . . . . Fabricator Hacks 5 | . . . . . . . . . 1 . . . . 2 . . . . 2 . . . . . Network Status 1 | . . . . . . . . . 1 . . . . . . . . . . . . . . . Load Schematic 2 | . . . . . . . . . . . . . . 1 . . . . 1 . . . . . Build 2 | . . . . . . . . . . . . . . 1 . . . . 1 . . . . . Repair Station Hacks 2 | . . . . . . . . . . . . . . . . . . . . . . . . 2 Refit 2 | . . . . . . . . . . . . . . . . . . . . . . . . 2 Recycling Unit Hacks 9 | . 1 . . . 1 1 5 . . 1 . . . . . . . . . . . . . . Retrieve Components 9 | . 1 . . . 1 1 5 . . 1 . . . . . . . . . . . . . . Scanalyzer . | . . . . . . . . . . . . . . . . . . . . . . . . . Garrison Access Hacks 5 | . . . . . . 1 . . . . . . 2 2 . . . . . . . . . . Seal Access 5 | . . . . . . 1 . . . . . . 2 2 . . . . . . . . . . Unauthorized Hacks 50 | . 3 . . . 2 7 4 . 5 6 . . 11 7 . . . . . . . . . 5 Terminals 46 | . 2 . . . 2 6 2 . 5 6 . . 11 7 . . . . . . . . . 5 Assimilate 10 | . . . . . . . . . 2 . . . 3 3 . . . . . . . . . 2 Botnet 36 | . 2 . . . 2 6 2 . 3 6 . . 8 4 . . . . . . . . . 3 Fabricators . | . . . . . . . . . . . . . . . . . . . . . . . . . Repair Stations . | . . . . . . . . . . . . . . . . . . . . . . . . . Recycling Units 4 | . 1 . . . . 1 2 . . . . . . . . . . . . . . . . . Reject 4 | . 1 . . . . 1 2 . . . . . . . . . . . . . . . . . Scanalyzers . | . . . . . . . . . . . . . . . . . . . . . . . . . Garrison Access . | . . . . . . . . . . . . . . . . . . . . . . . . . Data Cores Recovered . | . . . . . . . . . . . . . . . . . . . . . . . . . Used . | . . . . . . . . . . . . . . . . . . . . . . . . . Hacking Detections 61 | . 4 1 . . 3 10 9 . 4 8 3 . 9 5 . . . . 2 . . . . 3 Full Trace Events 15 | . 1 . . . 1 1 6 . . 2 2 . . 1 . . . . 1 . . . . . Feedback Events 1 | . . . . . . . . . . . 1 . . . . . . . . . . . . . Corruption 1 | . . . . . . . . . . . 1 . . . . . . . . . . . . . Feedback Blocked . | . . . . . . . . . . . . . . . . . . . . . . . . . Robot Schematics Acquired . | . . . . . . . . . . . . . . . . . . . . . . . . . Robots Built . | . . . . . . . . . . . . . . . . . . . . . . . . . Authchips . | . . . . . . . . . . . . . . . . . . . . . . . . . Time . | . . . . . . . . . . . . . . . . . . . . . . . . . Total Robot Build Rating . | . . . . . . . . . . . . . . . . . . . . . . . . . Part Schematics Acquired 7 | . . . . . . . . . . . . . 1 2 . . 4 . . . . . . . Parts Built 2 | . . . . . . . . . . . . . . 1 . . . . 1 . . . . . Authchips . | . . . . . . . . . . . . . . . . . . . . . . . . . Time 201 | . . . . . . . . . . . . . . 134 . . . . 67 . . . . . Total Part Build Rating 8 | . . . . . . . . . . . . . . 4 . . . . 4 . . . . . Parts Repaired . | . . . . . . . . . . . . . . . . . . . . . . . . . Time . | . . . . . . . . . . . . . . . . . . . . . . . . . Parts Recycled . | . . . . . . . . . . . . . . . . . . . . . . . . . Recycled Matter . | . . . . . . . . . . . . . . . . . . . . . . . . . Retrieved Matter . | . . . . . . . . . . . . . . . . . . . . . . . . . Retrieved Components 55 | . 6 . . . 9 10 21 . . 9 . . . . . . . . . . . . . . Parts Scanalyzed . | . . . . . . . . . . . . . . . . . . . . . . . . . Part Schematics Acquired . | . . . . . . . . . . . . . . . . . . . . . . . . . Parts Damaged . | . . . . . . . . . . . . . . . . . . . . . . . . . Bothacking | -11 -10 -10 -10 -9 -8 -8 -8 -8 -6 -6 -6 -6 -6 -5 -5 -5 -5 -4 -4 -4 -4 -4 -3 -3 ------------ Run | Yrd Mat Min Exi Min Mat Sto Rec Scr Fac Ext Cet Arc Hub Fac Upp Upp Zhi Pro Fac Upp Upp War Pro Res Used RIF Installer . | . . . . . . . . . . . . . . . . . . . . . . . . . Robots Hacked 3 | . . . . . . . . . . . . . . 1 . . . . 2 . . . . . Non-combat 3 | . . . . . . . . . . . . . . 1 . . . . 2 . . . . . Combat . | . . . . . . . . . . . . . . . . . . . . . . . . . Robot Hacks Applied 3 | . . . . . . . . . . . . . . 1 . . . . 2 . . . . . parse_system 1 | . . . . . . . . . . . . . . 1 . . . . . . . . . . no_distress 1 | . . . . . . . . . . . . . . . . . . . 1 . . . . . find_chute 1 | . . . . . . . . . . . . . . . . . . . 1 . . . . . Relay Couplers Released . | . . . . . . . . . . . . . . . . . . . . . . . . . Fabnet Peak Effective % . | . . . . . . . . . . . . . . . . . . . . . . . . . Robots Rewired 16 | . . . . . . . 16 . . . . . . . . . . . . . . . . . Allies Hacked 1 | . . . . . . . 1 . . . . . . . . . . . . . . . . . Hacks Repelled . | . . . . . . . . . . . . . . . . . . . . . . . . . Allies | -11 -10 -10 -10 -9 -8 -8 -8 -8 -6 -6 -6 -6 -6 -5 -5 -5 -5 -4 -4 -4 -4 -4 -3 -3 -------- Run | Yrd Mat Min Exi Min Mat Sto Rec Scr Fac Ext Cet Arc Hub Fac Upp Upp Zhi Pro Fac Upp Upp War Pro Res Total Allies 40 | . . 3 . 1 . 2 16 . 1 9 5 . . 2 . . . . . . . . . 1 Largest Group 15 | . . 3 3 4 4 2 15 15 15 5 6 6 5 1 . . . . . . . . . 1 Highest-Rated Group 639 | . . 40 40 71 71 62 264 264 264 169 639 639 480 23 . . . . . . . . . 10 Highest-Rated Ally 159 | . . 16 16 31 31 31 27 27 27 159 159 159 96 23 . . . . . . . . . 10 Total Orders 7 | . . . . . . . 3 . . 3 . . . . . . . . . . . . . 1 STAY 4 | . . . . . . . 1 . . 2 . . . . . . . . . . . . . 1 FOLLOW 3 | . . . . . . . 2 . . 1 . . . . . . . . . . . . . . Ally Attacks 261 | . . 2 . . 22 12 9 . 30 45 39 33 69 . . . . . . . . . . . Total Damage 7241 | . . 17 . . 286 191 165 . 577 805 1328 1361 2511 . . . . . . . . . . . Kills 45 | . . 1 . . 3 2 2 . 2 6 6 6 17 . . . . . . . . . . . Allies Corrupted . | . . . . . . . . . . . . . . . . . . . . . . . . . Allies Melted 2 | . . . . . . . . . . 1 . . 1 . . . . . . . . . . . Intel | -11 -10 -10 -10 -9 -8 -8 -8 -8 -6 -6 -6 -6 -6 -5 -5 -5 -5 -4 -4 -4 -4 -4 -3 -3 ------- Run | Yrd Mat Min Exi Min Mat Sto Rec Scr Fac Ext Cet Arc Hub Fac Upp Upp Zhi Pro Fac Upp Upp War Pro Res Active Infowar (turns) 6950 | . 2 . . . . . . . 1333 1411 353 690 830 653 230 67 95 64 160 . 150 579 316 17 Optics 825 | . . . . . . . . . . . . . . . . . . . . . 150 579 96 . Seismic 768 | . . . . . . . . . . . . . . 628 140 . . . . . . . . . T.N.C. 2 | . 2 . . . . . . . . . . . . . . . . . . . . . . . Machine Analysis 5886 | . . . . . . . . . 1333 1411 353 690 830 653 230 67 95 64 160 . . . . . Jamming 373 | . . . . . . . . . . . . . . . . . . . . . . 40 316 17 Robot Analysis Total 9 | . . . . . 1 3 . . . . . . 1 . . . 4 . . . . . . . Derelict Logs Recovered 6 | . . 1 . . . . . . . . . . . . . 1 . 1 . 1 2 . . . Drone Launches . | . . . . . . . . . . . . . . . . . . . . . . . . . Drone Recoveries . | . . . . . . . . . . . . . . . . . . . . . . . . . Exploration | -11 -10 -10 -10 -9 -8 -8 -8 -8 -6 -6 -6 -6 -6 -5 -5 -5 -5 -4 -4 -4 -4 -4 -3 -3 ------------- Run | Yrd Mat Min Exi Min Mat Sto Rec Scr Fac Ext Cet Arc Hub Fac Upp Upp Zhi Pro Fac Upp Upp War Pro Res Turns Passed 22095 | 199 1724 1555 514 87 1694 3787 2610 1705 1334 1411 353 691 830 653 230 67 95 64 549 63 284 579 316 701 Spaces Moved 13202 | 90 541 637 211 34 542 1209 892 677 548 704 218 328 480 1027 608 196 158 176 781 221 766 1151 505 502 Core 111 | 8 . . . . . . . . . . . . . . . . . . . . . . . 103 Treads 3565 | 82 541 637 211 34 209 . 428 677 548 198 . . . . . . . . . . . . . . Legs 3387 | . . . . . 333 1209 305 . . 506 218 328 480 8 . . . . . . . . . . Wheels 307 | . . . . . . . 159 . . . . . . . . . . . . . . . 98 50 Hover 51 | . . . . . . . . . . . . . . . . . . . . . . . . 51 Flight 5781 | . . . . . . . . . . . . . . 1019 608 196 158 176 781 221 766 1151 407 298 Fastest Speed 21 | 50 160 240 240 240 120 190 120 170 170 120 120 190 120 34 30 34 34 34 21 21 21 21 28 37 Average Speed 131 | 150 236 240 240 240 170 246 241 249 221 149 137 190 120 37 35 34 34 34 30 27 27 27 46 80 Slowest Speed 470 | 160 240 240 240 240 320 330 470 250 250 250 190 190 190 120 37 34 34 34 34 28 28 28 115 295 Overloaded Moves 193 | . . . . . . . . . . . . . . . 56 . . . 10 15 18 20 74 . Propulsion Burnouts . | . . . . . . . . . . . . . . . . . . . . . . . . . Robots Hopped 17 | . . . . . . . . . . . . . . 5 1 . . . 2 . 2 4 2 1 Potential Cave-ins 16 | . . . . . . . . . . 9 . . . . . . . . 2 . . 2 3 . Cave-ins Triggered 3 | . . . . . . . . . . 1 . . . . . . . . 1 . . . 1 . Teleports 1 | . . . . . . . . . . . . . . . . . . . . . . . . 1 Exploration Rate (%) 54 | 4 72 99 60 11 26 89 94 54 15 64 62 95 46 21 78 48 60 46 15 45 86 92 58 15 Regions Visited 24 Branch Regions 18 Pre-discovered Areas 7 | . . 1 1 . . . . . . . . . . . . . 3 . . 1 1 . . . Known Exits Taken 6 | . . . . . . 1 . . . . . . 1 1 . . . 1 1 . . . 1 . Unknown Exits Taken 18 | 1 1 1 1 1 1 . 1 1 1 1 1 1 . . 1 1 1 . . 1 1 1 . . Scrap Searched 21 | . . 1 . . . . . 8 . . . . . . 1 2 . 3 . 1 3 . 2 . Spaces Dug 96 | . . . . . . . . . . 69 . . . 2 . . . . 15 . . . 5 5 Terrain Destroyed 693 | . . . . . 6 13 3 . . 130 101 4 157 2 . . . . 17 . . 161 81 18 Melee 20 | . . . . . . . . . . . . . . 2 . . . . 13 . . . . 5 Projectile 60 | . . . . . . 1 3 . . 5 . 4 2 . . . . . 4 . . 1 29 11 AOE 612 | . . . . . 6 12 . . . 125 101 . 154 . . . . . . . . 160 52 2 Terrain Rammed . | . . . . . . . . . . . . . . . . . . . . . . . . . Walls Destroyed . | . . . . . . . . . . . . . . . . . . . . . . . . . Machines Disabled . | . . . . . . . . . . . . . . . . . . . . . . . . . Actions | -11 -10 -10 -10 -9 -8 -8 -8 -8 -6 -6 -6 -6 -6 -5 -5 -5 -5 -4 -4 -4 -4 -4 -3 -3 --------- Run | Yrd Mat Min Exi Min Mat Sto Rec Scr Fac Ext Cet Arc Hub Fac Upp Upp Zhi Pro Fac Upp Upp War Pro Res Total 16774 | 125 824 648 221 40 1190 1735 1237 694 628 956 249 359 681 1233 618 195 185 179 1056 221 833 1369 558 740 Wait 2356 | 10 187 . 8 5 556 307 90 9 42 141 13 3 166 143 5 . 9 . 249 . 67 172 24 150 Move 13144 | 89 540 636 210 33 541 1208 891 676 547 702 217 327 479 1017 605 195 157 175 776 220 761 1143 499 500 Hop 15 | . . . . . . . . . . . . . . 4 1 . . . 2 . 2 3 2 1 Pick Up 103 | 7 5 2 1 . 16 16 3 2 6 19 1 5 . 7 2 . 3 . 1 . . 4 . 3 Fast Attach 122 | 5 5 1 . . 7 24 7 3 5 18 1 . 4 7 . . 3 2 4 1 2 7 3 13 Attach 65 | 1 3 . . 2 8 13 7 . 5 4 . 2 4 2 2 . 2 . 1 . . 2 1 6 Detach 12 | . . 1 2 . 1 2 1 . . . . . . . . . . . 1 . . 1 1 2 Swap 23 | . 1 . . . 2 7 1 . . 6 3 . 1 . . . . . . . . 1 . 1 Drop 129 | . 3 . . . 7 31 9 4 6 17 2 3 5 17 2 . 4 2 1 . 1 6 . 9 Fire 511 | 13 80 8 . . 52 125 28 . 17 48 12 19 21 . . . . . 4 . . 30 27 27 Melee 92 | . . . . . . 1 24 . . . . . . 29 1 . 7 . 17 . . . . 13 Ram 3 | . . . . . . . . . . . . . . . . . . . . . . . . 3 Kick 1 | . . . . . . 1 . . . . . . . . . . . . . . . . . . Crush . | . . . . . . . . . . . . . . . . . . . . . . . . . Escape Stasis 21 | . . . . . . . . . . 1 . . . 7 . . . . . . . . 1 12 Rewire 177 | . . . . . . . 176 . . . . . 1 . . . . . . . . . . . Trap . | . . . . . . . . . . . . . . . . . . . . . . . . . Miscellaneous . | . . . . . . . . . . . . . . . . . . . . . . . . . Route ------- -11/Scrapyard -10/Materials (discovered 4 exits: [*Mat x2] / *Min x2) -10/Mines (discovered 4 exits: [*Mat x2] / *Exi / [*Sub]) -10/Exiles -9/Mines -8/Materials -8/Storage (discovered 2 exits: [*Fac] / *Rec) -8/Recycling (discovered 2 exits: *Fac / [*Scr]) -8/Scraptown -6/Factory -6/Extension (discovered 2 exits: *Fac / *Cet) -6/Cetus -6/Archives (discovered 3 exits: *Fac / *Hub x2) -6/Hub_04(d) (discovered 4 exits: *Fac x4) -5/Factory (discovered 6 exits: Fac x4 / *Upp x2) -5/Upper Caves -5/Upper Caves -5/Zhirov -4/Proximity Caves -4/Factory (discovered 7 exits: Res x4 / *Upp x2 / Arm) -4/Upper Caves -4/Upper Caves (discovered 2 exits: *Res / *War) -4/Warlord -3/Proximity Caves -3/Research (discovered 3 exits: [*Res] / Tes x2) History --------- Turn | Location | Event 4 | -11/Scrapyard | Discovered new exit (range 15) 200 | -11/Scrapyard | Entered Materials 317 | -10/Materials | Build established: Mutant 318 | -10/Materials | Discovered new exit (range 13) 423 | -10/Materials | Discovered new exit (range 7) 1377 | -10/Materials | Discovered new exit (range 10) 1510 | -10/Materials | Discovered new exit (range 16) 1781 | -10/Materials | Core integrity fell below 50% 1924 | -10/Materials | Entered Mines 1932 | -10/Mines | Met a Derelict bent on vengeance 1961 | -10/Mines | Learned location of Storage (-8) 2235 | -10/Mines | Assisted by bots powering up and referring to "LRC-V3" 2304 | -10/Mines | Discovered new exit (range 6) 2658 | -10/Mines | Learned Materials emergency access door positions 2694 | -10/Mines | Discovered new exit (range 7) 2711 | -10/Mines | Deemed a non-threat by the Exiles lab entrance 2711 | -10/Mines | Discovered new exit (range 5) 3161 | -10/Mines | A weapon hastily lodged in a ceiling crevice suddenly fell to the ground 3301 | -10/Mines | Discovered new exit (range 6) 3479 | -10/Mines | Entered Exiles 3479 | -10/Exiles | Accompanied by 3 allies 3540 | -10/Exiles | Met 8R-AWN 3579 | -10/Exiles | Met EX-HEX 3653 | -10/Exiles | Met EX-BIN 3682 | -10/Exiles | Aligned with FarCom system 3684 | -10/Exiles | Given EX-Vault access code 3753 | -10/Exiles | Opened EX-Vault 3770 | -10/Exiles | Found 0b10 Alert Chip 3816 | -10/Exiles | Warned to stay clear of 0b10 Research branches 3879 | -10/Exiles | Met EX-DEC 3895 | -10/Exiles | Learned location of Zion (-6) 3967 | -10/Exiles | Discovered new exit (range 10) 3993 | -10/Exiles | Left Exiles lab with 0b10 Alert Chip 3993 | -10/Exiles | Entered Mines 3993 | -9/Mines | Accompanied by 3 allies 3996 | -9/Mines | Received a Mining Laser from a helpful Derelict 4058 | -9/Mines | Discovered new exit (range 6) 4080 | -9/Mines | Entered Materials 4080 | -8/Materials | Accompanied by 4 allies 4080 | -8/Materials | Evolved 4 slots: Propulsion x1, Utility x1, Weapon x2 4173 | -8/Materials | Lost 3 allies 4378 | -8/Materials | Build established: Skirmisher 5163 | -8/Materials | Lost 3 parts (1p1u1w) 5575 | -8/Materials | Build established: Scavenger-Skirmisher 5722 | -8/Materials | Discovered new exit (range 9) 5774 | -8/Materials | Entered Storage 5949 | -8/Storage | Garrison activated, responded to threat 6500 | -8/Storage | Garrison activated, responded to threat 7802 | -8/Storage | Discovered new exit (range 5) 7891 | -8/Storage | Met a pair of Derelict thieves 7919 | -8/Storage | Core integrity fell below 50% 7957 | -8/Storage | Destroyed 7 combat bots 8039 | -8/Storage | Lost 4 parts (1p2n1w) 8277 | -8/Storage | Identified exit to Recycling 8360 | -8/Storage | System corruption reached 10% 8574 | -8/Storage | First assault squad dispatched 9553 | -8/Storage | Used back door to open Recycling access 9561 | -8/Storage | Entered Recycling 9910 | -8/Recycling | Discovered new exit (range 15) 10044 | -8/Recycling | Build established: Skirmisher 10067 | -8/Recycling | Core integrity fell below 20% 10095 | -8/Recycling | Lost 4 parts (1n1u2w) 10486 | -8/Recycling | Build established: Commander-Mutant 11013 | -8/Recycling | Build established: Commander-Skirmisher 11229 | -8/Recycling | Scanned before Scraplab entrance 12124 | -8/Recycling | Entered Scraplab 12144 | -8/Recycling | Discovered new exit (range 2) 12171 | -8/Recycling | Entered Scraptown 12171 | -8/Scraptown | Accompanied by 15 allies 12171 | -8/Scraptown | System corruption cleaned by C-Scrubber 12457 | -8/Scraptown | Build established: Commander-Gunner 12657 | -8/Scraptown | Discovered new exit (range 13) 12851 | -8/Scraptown | Visited The Evicted 12886 | -8/Scraptown | Visited Spacefarers 12976 | -8/Scraptown | Visited Awakened 13043 | -8/Scraptown | Visited Cave Peace 13126 | -8/Scraptown | Visited Comm Corps 13168 | -8/Scraptown | Visited Bundlers 13704 | -8/Scraptown | Turned away by UFD registrar 13876 | -8/Scraptown | Entered Factory 13876 | -6/Factory | Accompanied by 15 allies 13876 | -6/Factory | Evolved 4 slots: Power x1, Utility x3 14177 | -6/Factory | Build established: Commander-Tank 14523 | -6/Factory | Lost 12 allies 14963 | -6/Factory | Build established: Skirmisher 15079 | -6/Factory | Discovered new exit (range 15) 15210 | -6/Factory | Entered Extension 15210 | -6/Extension | Accompanied by 1 ally 15298 | -6/Extension | Rescued a captive Derelict 15299 | -6/Extension | Rescued a captive Derelict 15473 | -6/Extension | Lost 6 parts (3n2u1w) 15581 | -6/Extension | Rescued a captive Derelict 15581 | -6/Extension | Rescued a captive Derelict 15617 | -6/Extension | Rescued a captive Derelict 15758 | -6/Extension | Rescued a captive Derelict 15893 | -6/Extension | Rescued a captive Derelict 15894 | -6/Extension | Rescued a captive Derelict 15973 | -6/Extension | Build established: Scavenger-Skirmisher 16078 | -6/Extension | Crushed by falling debris 16374 | -6/Extension | Rescued A7 16475 | -6/Extension | Discovered new exit (range 10) 16476 | -6/Extension | Discovered new exit (range 6) 16621 | -6/Extension | Entered Cetus 16621 | -6/Cetus | Accompanied by 1 ally (A7) 16626 | -6/Cetus | Acquired a Cetus Manufacturing Module code from A7 16646 | -6/Cetus | Spotted Cetus Guard 16650 | -6/Cetus | Spotted Cetus Guard 16651 | -6/Cetus | Spotted Cetus Guard 16652 | -6/Cetus | Spotted Cetus Guard 16655 | -6/Cetus | Destroyed Cetus Guard 16655 | -6/Cetus | Destroyed Cetus Guard 16659 | -6/Cetus | Destroyed Cetus Guard 16669 | -6/Cetus | Destroyed Cetus Guard 16759 | -6/Cetus | Started Cetus Manufacturing Module 16784 | -6/Cetus | Manufactured an Enhanced Grunt 16809 | -6/Cetus | Manufactured an Enhanced Grunt 16834 | -6/Cetus | Manufactured an Enhanced Grunt 16859 | -6/Cetus | Manufactured an Enhanced Grunt 16884 | -6/Cetus | Manufactured an Enhanced Grunt 16918 | -6/Cetus | Build established: Scavenger-Gunner 16931 | -6/Cetus | Discovered new exit (range 15) 16974 | -6/Cetus | Entered Archives 16974 | -6/Archives | Accompanied by 6 allies (A7) 17028 | -6/Archives | Unable to access archive contents 17056 | -6/Archives | Discovered new exit (range 14) 17113 | -6/Archives | Unable to access archive contents 17123 | -6/Archives | Discovered new exit (range 15) 17188 | -6/Archives | Discovered new exit (range 14) 17665 | -6/Archives | Entered Hub_04(d) 17665 | -6/Hub_04(d) | Accompanied by 5 allies 17947 | -6/Hub_04(d) | Identified exit to Factory 17969 | -6/Hub_04(d) | Build established: Scavenger-Skirmisher 18485 | -6/Hub_04(d) | Lost 3 parts (2p1w) 18492 | -6/Hub_04(d) | Network Hub disabled 18493 | -6/Hub_04(d) | System corruption reached 10% 18495 | -6/Hub_04(d) | Entered Factory 18495 | -5/Factory | Evolved 2 slots: Propulsion x1, Utility x1 18610 | -5/Factory | Identified exit to Factory 18610 | -5/Factory | Identified exit to Upper Caves 18787 | -5/Factory | Build established: Wizard-Mutant 18954 | -5/Factory | Fabricated Cld. VTOL Module? 19148 | -5/Factory | Entered Upper Caves 19272 | -5/Upper Caves | Attracted the attention of an 0b10 checkpoint 19317 | -5/Upper Caves | Spotted B-75 Beast 19376 | -5/Upper Caves | Discovered new exit (range 8) 19378 | -5/Upper Caves | Entered another Upper Caves area 19398 | -5/Upper Caves | Learned 12 Factory zone layouts 19439 | -5/Upper Caves | Discovered new exit (range 15) 19445 | -5/Upper Caves | Entered Zhirov 19445 | -5/Zhirov | Discovered new exit (range 3) 19452 | -5/Zhirov | Met Zhirov 19458 | -5/Zhirov | Learned location of Quarantine (-2) 19458 | -5/Zhirov | Learned location of Testing (-3) 19458 | -5/Zhirov | Learned location of Command (-1) 19461 | -5/Zhirov | Zhirov requested help retrieving the SGEMP Prototype 19517 | -5/Zhirov | Found Alien Artifact 19519 | -5/Zhirov | Identified Integrated Reactor 19519 | -5/Zhirov | Installed Integrated Reactor, increased core energy generation (+10) 19526 | -5/Zhirov | Found Alien Artifact 19540 | -5/Zhirov | Entered Proximity Caves 19596 | -4/Proximity Caves | Discovered exit to Factory (range 8) 19598 | -4/Proximity Caves | Learned Research security intel 19604 | -4/Proximity Caves | Entered Factory 19604 | -4/Factory | Evolved 2 slots: Propulsion x2 19605 | -4/Factory | Identified exit to Research 19605 | -4/Factory | Identified exit to Armory 19688 | -4/Factory | Fabricated Cld. VTOL Module? 19740 | -4/Factory | Identified exit to Upper Caves 19764 | -4/Factory | Crushed by falling debris 19893 | -4/Factory | Build established: Wizard-Sprinter 20109 | -4/Factory | Found Prototype Processor 20109 | -4/Factory | Identified Exp. Melee Analysis Suite 20153 | -4/Factory | Entered Upper Caves 20210 | -4/Upper Caves | Discovered new exit (range 13) 20216 | -4/Upper Caves | Entered another Upper Caves area 20219 | -4/Upper Caves | Discovered exit to Research (range 8) 20219 | -4/Upper Caves | Learned location of Armory (-4) 20303 | -4/Upper Caves | Attracted the attention of an 0b10 checkpoint 20495 | -4/Upper Caves | Discovered new exit (range 10) 20500 | -4/Upper Caves | Entered Warlord 20514 | -4/Warlord | System corruption cleaned by Quarantine Array 20590 | -4/Warlord | Found Prototype Special Weapon 20590 | -4/Warlord | Identified RU-N14's Throwing Claymores v3 20656 | -4/Warlord | Met Warlord 20681 | -4/Warlord | Warlord's base attacked by MAIN.C 20726 | -4/Warlord | Found Signal Generator 20727 | -4/Warlord | Found Signal Generator 20921 | -4/Warlord | Warlord forces counterattacked 20974 | -4/Warlord | Discovered new exit (range 21) 21011 | -4/Warlord | Destroyed 12 combat bots 21023 | -4/Warlord | Lost 3 parts (1u2w) 21035 | -4/Warlord | Found Prototype Energy Gun 21035 | -4/Warlord | Identified Vortex Shotgun 21038 | -4/Warlord | Found Prototype Energy Gun 21038 | -4/Warlord | Identified Vortex Rail 21041 | -4/Warlord | Found Vortex Rail 21079 | -4/Warlord | Entered Proximity Caves 21175 | -3/Proximity Caves | Crushed by falling debris 21176 | -3/Proximity Caves | System corruption reached 10% 21206 | -3/Proximity Caves | Lost 4 parts (1p1n1u1w) 21376 | -3/Proximity Caves | Discovered exit to Research (range 10) 21395 | -3/Proximity Caves | Entered Research 21395 | -3/Research | Evolved 2 slots: Propulsion x1, Utility x1 21396 | -3/Research | Identified exit to Testing 21562 | -3/Research | Build established: Hacker-Mutant 21792 | -3/Research | Lost 6 parts (1p2n1u2w) 21806 | -3/Research | Discovered new exit (range 15) 22028 | -3/Research | Core integrity fell below 50% 22035 | -3/Research | Identified Transdimensional Reconstructor 22035 | -3/Research | Warped through subspace 22040 | -3/Research | System corruption reached 10% 22051 | -3/Research | Core integrity fell below 20% 22081 | -3/Research | Lost 10 parts (7n2u1w) 22096 | -3/Research | Destroyed by S-43 Plague with Heavy Machine Gun Last Messages --------------- 22035_ Identified Transdimensional Reconstructor. 22035_ Warped through subspace. 22035_ Xenon Bombardment Thruster destroyed. 22035_ Penetrated by Slug. 22035_ Imp. Hacking Suite destroyed. 22036_ Penetrated by Slug. 22036_ Enh. Force Lance destroyed. 22036_ Imp. Hacking Suite destroyed. 22036_ U-05 Engineer works on Catalytron. 22041_ System corrupted: Xenon Bombardment Thruster rejected. 22041_ Acquired Xenon Bombardment Thruster. 22047_ Slammed into U-05 Engineer. 22050_ Xenon Bombardment Thruster destroyed. 22050_ Slammed into U-05 Engineer. 22062_ Door malfunctions. 22089_ System corrupted: Component data lost. 22090_ Acquired Unknown Flight Unit. 22090_ Identified Field Propulsion Drive. 22096_ Triggered Ambush Trap. 22096_ S-43 Plague emerges from a hatch in the floor. Map ----- +----------------------------------------------------+ | ?????????????????????????????????????????????? | | ???????????????????????????????????????????### | | ???????????????????????????????????????????# | | ??????????????????????????????????????!##### | | ??????????????????????????????????? | | ??????????????????????????????????? | | ??????????????????????????????????? | | ????????????????????????????????????] ##### | | ???????????????????????????????????????????# | | ???????????????????????????????????????????### | | ?????????????????????????????????????????????? | | ?????????????????????????????????????????????? | | ?????????????????????????????????????????????? | | ?????????????????????????????????????????????? | | ?????????????????????????????????????????????? | | ???????????????????????????????????????????#+? | | ?????????????????????????????????????????### # | | ?????????????????????????????????? ??????# | | ?????????????????????????????+?### ?????# | | ???????????????????????????? ##### | | ?????????#########????????? | | ?????????# #???????? | | ?????????# #??????? | | ?????????# #?????? """ """ | | ?????????# """ ###### """"????""" | | ?????????# """ # s @ """"? """" | | ?????????# """ p ss """ ? """ | | ?????????# """ #pp Y | | ?????????# """ #p### | | ?????????# # #?? | | ?????????# # #?? """ """ | | ?????????# # #?# """" """" | | ?????????######### #?# """" """" | | ?????????????????# #?# """ """ | | ?????????????????# #?# | | ?????????????????# #?# | | ????????????######+### ###+# | | ????????????# # """ """ #? | | ????????????# # """" """" # | | ????????????# """ # """" """" # | | ????????????# """ # """ """ # "" | | ????????????# """ / # "" | | ????????????# """ # # "" | | ????????????# """ # # "" | | ????????????# # # ?? | | ????????????# # ### # ?? | | ????????????########+# #?# ###?? | | ????????????????# #?# #???? | | ????????????????# #?# #???? | | ????????????????# #?# ??? | +----------------------------------------------------+ Best States ------------- Heat Dissipation 103 Energy Generation 39 Energy Capacity 515 Matter Stores 300 Matter Capacity 300 Sight Range 22 Terrain Scan Density 10 Jamming Range 14 Base Temperature (-) 100 Armor Coverage 375 Resistance: KI 20 Evasion (%) 65 Targeting Accuracy 6 Recoil Reduction 3 Kinecelleration 40 Offensive Hacking 50 Defensive Hacking 47 Item Schematics ----------------- Imp. Recalibrator | -6/Hub_04(d) | Hacked Impulse Thruster Array | -5/Factory | Hacked Cld. VTOL Module | -5/Factory | Hacked Assault Drone Bay | -5/Zhirov | Free Exp. Heat Sink | -5/Zhirov | Free Imp. Arc Thrower | -5/Zhirov | Free Exp. Optical Array | -5/Zhirov | Free Robot Schematics ------------------ None Fabricated ------------ Cld. VTOL Module | x1 | -5/Factory Cld. VTOL Module | x1 | -4/Factory Repaired ---------- Nothing Alien Tech Used ----------------- Integrated Reactor Transdimensional Reconstructor Achievements -------------- A Powerful Ally? Adventurer Charge!!! Maximum Efficiency Project G-00 Challenges ------------ None Game ------ Seed RiotReactionChainsaw Manual? 0 Play Time 02:59:06 Cumulative 86.4 hours Start 2025.05.20 @ 07:49:56 End 2025.05.20 @ 22:36:21 Sessions 3 Manual Loads 0 Difficulty Rogue Special Mode None Game No. 102 Rogue 102 Adventurer 0 Explorer 0 Win Type - Total 1 Types 1/0/0/0/0/0/0/0/0/0 Lore% 45 Gallery% 46 Achievement% 45 Wizard Run 0 Options --------- Layout 1 ASCII 0 Keyboard 0 Movement Mouse Keybinds 0 Fullscreen 1 Font 32/SmallcapsGlow Map View 77x35 Zoom Use 0% Tactical HUD 1 Map Filters NONE Filters NONE Steam 1 RUN: 10693f71-0d83-4ea0-b203-4774226dc74e